bitfinex/quotes_ETHUSD_20260106
["timestamp","ask_amount","ask_price","bid_price","bid_amount"]
[1767727788268,2.09862893,3221.8,3221.1,0.002]
[1767727789198,5.2024986,3221.8,3221.1,0.002]
[1767727789696,1.28562893,3221.8,3221.1,1.31188245]
[1767727789876,1.28562893,3221.8,3221.1,2.06401454]
[1767727790670,4.38950704,3221.8,3221.1,5.16851044]
[1767727791298,4.38950704,3221.8,3221.4,0.002]
[1767727793181,0.001,3221.8,3221.4,0.002]
[1767727795097,1.28562893,3221.8,3221.4,0.002]
[1767727795298,1.28462893,3221.7,3221.4,0.002]
[1767727796889,2.11623717,3221.8,3221.4,0.002]
[1767727797185,0.83160824,3221.8,3221.4,0.002]
[1767727797575,0.001,3221.8,3221.4,0.002]
[1767727799499,0.001,3221.8,3221.4,1.23053459]
[1767727801778,0.001,3221.8,3221.5,1.31791008]
[1767727803002,0.001,3221.8,3221.5,4.42202452]
[1767727803303,0.001,3221.8,3221.6,1.31791008]
[1767727803509,0.001,3222.1,3221.8,1.31791008]
[1767727803802,0.001,3222.1,3221.7,0.75261686]
[1767727803803,1.32882817,3222.7,3222.1,1.31791008]
[1767727803980,1.32882817,3222.7,3221.8,1.31791008]
[1767727804517,1.32882817,3223.7,3222.0,1.31791008]
[1767727804804,1.32882817,3223.5,3222.2,1.31791008]
[1767727805006,1.32882817,3223.3,3222.4,1.31791008]
[1767727808995,1.32882817,3223.3,3222.6,1.31791008]
[1767727809194,1.32882817,3223.3,3222.7,0.75242716]
[1767727809396,1.32882817,3223.5,3222.8,1.31791008]
[1767727810590,1.32882817,3223.5,3222.9,3.10279561]
[1767727812796,3.10214819,3223.6,3222.9,3.10279561]
[1767727812797,1.32882817,3223.8,3222.9,1.31791008]
[1767727812999,2.14182817,3223.8,3223.0,2.07027947]
[1767727813325,1.32882817,3223.7,3223.0,0.75236939]
[1767727813480,0.813,3223.8,3222.9,1.31791008]
[1767727813685,0.813,3223.8,3222.1,3.73188753]
[1767727813686,1.32882817,3223.7,3222.4,4.42110736]
[1767727813912,1.32882817,3223.7,3222.5,1.31791008]
[1767727814104,1.32882817,3223.7,3222.5,1.28359571]
[1767727814327,1.32882817,3223.5,3222.5,1.28359571]
[1767727814512,1.32882817,3223.5,3222.5,1.28159571]
[1767727815214,7.53345681,3223.4,3222.5,1.28159571]
[1767727815409,0.813,3223.3,3222.5,1.28159571]
[1767727816116,2.14182817,3223.3,3222.5,1.28159571]
[1767727816418,1.14487711,3223.2,3222.5,1.28159571]
[1767727816590,1.14487711,3223.2,3222.7,0.002]
[1767727816791,1.14587711,3223.2,3222.7,0.002]
[1767727818523,6.20520616,3223.1,3222.7,0.002]
[1767727819621,7.53403433,3223.1,3222.7,0.002]
[1767727819829,0.86799114,3223.0,3222.7,0.002]
[1767727820915,3.10279561,3222.9,3222.7,0.002]
[1767727821617,3.10279561,3222.9,3222.4,0.002]
[1767727822796,4.43162378,3222.9,3222.4,0.002]
[1767727825318,3.10279561,3222.9,3222.4,1.31991008]
[1767727828801,3.10279561,3222.9,3222.7,0.002]
[1767727829130,3.81014433,3222.9,3222.4,1.31991008]
[1767727829296,3.10279561,3222.9,3222.4,1.31991008]
[1767727830428,6.20531217,3223.1,3222.4,1.31991008]
[1767727831208,6.20531217,3223.1,3222.4,0.002]
[1767727831407,9.30798696,3223.1,3222.4,0.002]
[1767727831755,1.22524586,3222.9,3222.4,0.002]
[1767727832104,2.03824586,3222.8,3222.4,0.002]
[1767727832302,1.22524586,3222.7,3222.4,0.002]
[1767727832722,3.10308446,3222.6,3222.4,0.002]
[1767727832925,3.10301579,3222.7,3222.4,0.002]
[1767727833124,3.61714196,3222.7,3222.4,0.002]
[1767727834110,1.22524586,3223.3,3222.4,1.2175507]
[1767727834426,0.813,3223.1,3222.4,1.2175507]
[1767727835134,3.10260308,3223.1,3222.4,1.2175507]
[1767727838938,6.2052376,3223.1,3222.4,1.2175507]
[1767727839121,3.10260308,3223.1,3222.4,1.2175507]
[1767727839329,6.2052376,3223.1,3222.4,1.2175507]
[1767727839646,3.10260308,3223.1,3222.4,1.2175507]
[1767727840215,3.10260308,3223.1,3222.7,0.002]
[1767727840415,3.9270413,3223.1,3222.7,0.002]
[1767727840619,0.001,3222.8,3222.7,0.002]
[1767727842851,0.001,3222.8,3222.5,1.2155507]
[1767727850149,1.22624586,3222.8,3222.4,0.002]
[1767727850329,4.32918353,3222.8,3222.4,0.002]
[1767727850529,1.22524586,3222.7,3222.4,0.002]
[1767727851860,1.22524586,3222.7,3221.5,3.10414403]
[1767727852046,1.22524586,3222.5,3221.6,1.2155507]
[1767727852529,4.32842662,3222.5,3222.4,0.002]
[1767727852735,1.22524586,3222.4,3221.6,1.2155507]
[1767727852942,1.22524586,3222.4,3221.1,0.002]
[1767727852943,1.22524586,3222.4,3221.4,3.10623659]
[1767727853132,1.22524586,3222.4,3221.4,0.002]
[1767727853333,1.22524586,3222.2,3221.4,0.002]
[1767727854635,1.22524586,3222.0,3221.4,0.002]
[1767727855258,3.10298817,3222.7,3221.9,1.2155507]
[1767727855452,4.32823403,3222.7,3221.9,1.2155507]
[1767727855653,3.10392609,3222.8,3221.9,1.2155507]
[1767727855857,1.22524586,3222.7,3221.7,1.2155507]
[1767727856951,1.22524586,3222.5,3221.8,3.10385498]
[1767727857160,1.22524586,3222.5,3221.9,0.43194057]
[1767727858967,1.22524586,3222.5,3222.0,3.10366232]
[1767727859869,1.22524586,3222.5,3221.9,3.53566563]
[1767727860366,0.001,3222.8,3222.0,1.19304069]
[1767727860575,0.001,3223.2,3222.8,1.19304069]
[1767727862369,0.001,3223.2,3222.5,1.25789898]
[1767727863497,0.001,3223.2,3222.1,0.812]
[1767727863498,1.18303096,3223.1,3222.1,0.812]
[1767727863711,1.18303096,3223.0,3221.8,1.04021597]
[1767727864362,1.18303096,3223.0,3221.6,1.04032405]
[1767727864556,1.18303096,3222.8,3221.6,1.04032405]
[1767727864804,1.18303096,3222.8,3221.9,0.002]
[1767727864976,1.18303096,3222.6,3221.9,0.002]
[1767727865160,1.99603096,3222.6,3221.9,0.002]
[1767727866090,0.813,3222.8,3221.9,1.04242933]
[1767727866298,1.18303096,3222.9,3221.9,1.04242933]
[1767727866478,0.813,3222.8,3221.9,1.04242933]
[1767727866997,7.21845933,3222.8,3221.9,1.04242933]
[1767727867495,8.40149029,3222.8,3221.9,1.04242933]
[1767727867673,1.18303096,3222.7,3221.9,1.04242933]
[1767727868055,7.38919988,3222.6,3221.9,1.04242933]
[1767727868267,1.18303096,3222.5,3221.9,0.002]
[1767727868494,1.92195095,3222.5,3221.9,0.002]
[1767727869091,1.92195095,3222.5,3221.9,1.0427133]
[1767727869092,0.73891999,3222.5,3221.9,1.0427133]
[1767727869499,1.92195095,3222.5,3221.9,1.0427133]
[1767727870262,1.18303096,3222.5,3221.9,1.0427133]
[1767727870463,3.10308446,3222.6,3221.9,4.14643134]
[1767727870694,1.18303096,3223.0,3222.0,1.04086499]
[1767727870995,0.813,3222.9,3222.0,1.04086499]
[1767727871760,3.10285164,3222.9,3222.2,1.04098668]
[1767727871967,3.91560308,3223.1,3222.2,1.04098668]
[1767727872266,1.18303096,3223.0,3222.3,1.04098668]
[1767727873897,0.001,3223.2,3222.4,1.041171]
[1767727874070,3.1035584,3223.2,3222.4,1.041171]
[1767727874792,6.2061168,3223.2,3222.4,1.041171]
[1767727874995,1.18303096,3223.1,3222.2,1.76607401]
[1767727875169,1.18303096,3223.1,3222.2,1.04124288]
[1767727875992,4.2857303,3223.0,3222.2,4.14468252]
[1767727876780,4.2857303,3223.0,3222.2,1.04324288]
[1767727876781,1.18303096,3222.9,3222.2,1.04324288]
[1767727877181,1.18403096,3222.9,3222.2,1.04324288]
[1767727877579,0.001,3222.9,3222.3,1.04155118]
[1767727878180,0.001,3222.9,3222.4,1.04166891]
[1767727880373,0.001,3222.9,3222.2,1.53974713]
[1767727880871,0.001,3222.9,3222.2,4.64320155]
[1767727881274,1.18403096,3222.9,3222.2,0.49787849]
[1767727882480,3.10289189,3222.8,3222.2,0.49787849]
[1767727882681,3.10289189,3222.8,3222.2,0.4840776]
[1767727883401,1.18303096,3222.7,3222.2,0.4840776]
[1767727885602,1.18303096,3222.7,3222.2,3.10344562]
[1767727886125,0.001,3223.2,3222.5,4.96601018]
[1767727886337,1.18403096,3223.2,3222.6,0.84289186]
[1767727886631,0.001,3223.2,3222.7,1.25789898]
[1767727886927,3.10203766,3223.7,3222.9,1.25789898]
[1767727887090,3.10196111,3223.8,3223.1,1.25789898]
[1767727887500,3.10184355,3223.9,3223.1,1.25789898]
[1767727887704,3.10165062,3224.1,3223.1,1.25789898]
[1767727887705,3.10164076,3224.1,3223.1,1.25789898]
[1767727888501,7.38631248,3224.1,3223.1,1.25789898]
[1767727888694,8.70284475,3224.1,3223.1,2.00423576]
[1767727889519,8.70284475,3224.1,3223.1,5.106836]
[1767727889925,8.70284475,3224.1,3223.2,1.25789898]
[1767727890103,4.28467172,3224.1,3223.2,1.25789898]
[1767727890616,7.38631248,3224.1,3223.2,1.25789898]
[1767727891196,1.18303096,3224.0,3223.2,1.25789898]
[1767727891625,1.25203257,3223.8,3222.9,1.22745656]
[1767727892320,1.25203257,3223.8,3223.0,3.10264419]
[1767727892620,1.25203257,3223.8,3223.1,0.43301008]
[1767727893340,4.35374286,3224.1,3222.9,1.22745656]
[1767727893555,4.35374286,3224.1,3223.3,1.22745656]
[1767727893556,7.45545315,3224.1,3223.3,1.22745656]
[1767727895011,4.35374286,3224.1,3223.3,4.32985176]
[1767727895221,7.45545315,3224.1,3223.3,1.22745656]
[1767727896549,1.25203257,3224.0,3223.1,4.3300499]
[1767727896721,1.25203257,3224.0,3223.1,5.07332533]
[1767727897534,3.10183318,3223.9,3223.1,5.07332533]
[1767727897733,3.10183318,3223.9,3223.2,1.22745656]
[1767727899639,3.10183318,3223.9,3223.3,1.22745656]
[1767727900430,0.001,3223.7,3223.3,1.22745656]
[1767727901425,0.001,3223.7,3223.1,1.97073199]
[1767727902123,1.25303257,3223.7,3223.1,1.97073199]
[1767727903337,0.001,3223.7,3223.2,1.22745656]
[1767727903532,0.001,3223.7,3223.3,1.22745656]
[1767727904537,0.001,3223.7,3223.3,1.22545656]
[1767727906040,0.001,3223.7,3223.3,4.32786385]
[1767727906537,0.001,3223.7,3223.4,1.28772714]
[1767727906745,0.001,3223.7,3223.5,1.28772714]
[1767727908854,0.001,3223.7,3223.5,4.38994335]
[1767727909248,1.2226562,3224.2,3223.5,3.10221621]
[1767727909451,3.10148365,3224.3,3223.6,1.28772714]
[1767727909862,7.4256235,3224.3,3223.6,1.28772714]
[1767727910360,4.32413985,3224.3,3223.6,1.28772714]
[1767727911020,7.4256235,3224.3,3223.6,1.28572714]
[1767727911218,1.2226562,3224.2,3223.4,0.43901344]
[1767727911434,1.2226562,3224.2,3223.3,1.28772714]
[1767727912538,1.2226562,3224.0,3223.3,4.39006452]
[1767727912731,0.001,3223.7,3223.3,4.39006452]
[1767727912935,0.001,3223.7,3223.3,4.38348008]
[1767727914936,0.001,3223.7,3223.2,3.102473]
[1767727916150,3.10139503,3224.4,3223.2,3.102473]
[1767727916151,4.32194874,3224.5,3223.7,1.28772714]
[1767727916534,3.10129452,3224.5,3223.9,1.28772714]
[1767727916727,3.10120425,3224.6,3223.9,1.28772714]
[1767727917321,1.2226562,3224.5,3223.5,2.09972714]
[1767727917664,1.2226562,3224.5,3223.2,0.83048659]
[1767727917665,1.2226562,3224.2,3223.4,3.10228996]
[1767727918228,1.2226562,3224.2,3223.3,3.10236262]
[1767727918527,1.2226562,3224.2,3223.4,3.10230981]
[1767727920159,4.32429696,3224.1,3223.3,4.39011061]
[1767727920955,1.2226562,3224.0,3223.3,1.28772714]
[1767727921132,1.2226562,3223.9,3223.2,0.812]
[1767727922169,1.29715248,3223.7,3223.2,0.812]
[1767727923166,1.29715248,3223.7,3223.2,0.81]
[1767727923754,3.1019294,3223.8,3223.2,2.07746134]
[1767727924439,3.92715304,3223.8,3223.2,2.07746134]
[1767727925777,5.23310621,3223.8,3223.2,2.07746134]
[1767727926970,3.10288247,3223.9,3223.3,1.26746134]
[1767727927171,3.10288247,3223.9,3222.2,7.00343845]
[1767727927172,4.9611098,3223.5,3222.4,3.10324833]
[1767727927370,1.30595317,3223.4,3222.4,3.10321186]
[1767727927592,1.30595317,3223.4,3222.3,4.37081113]
[1767727927893,1.30595317,3223.4,3222.3,1.26746134]
[1767727929154,6.2038588,3223.8,3222.4,1.26746134]
[1767727929405,1.30595317,3223.7,3222.4,1.26746134]
[1767727929879,0.001,3223.9,3222.4,1.26746134]
[1767727929880,3.1028545,3223.9,3222.4,1.26746134]
[1767727930081,4.40880767,3223.9,3222.4,1.26746134]
[1767727930270,4.40879186,3223.9,3222.6,1.26746134]
[1767727930578,4.40879186,3223.9,3222.8,1.26746134]
[1767727932572,4.40879186,3223.9,3222.9,6.20559122]
[1767727932747,4.40879186,3223.9,3223.0,1.26746134]
[1767727934477,1.30595317,3223.8,3223.0,1.26746134]
[1767727934774,1.30595317,3223.8,3223.1,2.0147666]
[1767727935157,1.30595317,3223.8,3223.2,1.26746134]
[1767727936365,0.001,3223.5,3223.2,1.26746134]
[1767727937850,0.001,3223.5,3223.1,0.74730526]
[1767727938158,1.30695317,3223.5,3223.0,3.10263755]
[1767727938369,1.30695317,3223.5,3222.7,3.10296432]
[1767727938596,1.30695317,3223.5,3222.7,1.26746134]
[1767727938994,1.30695317,3223.5,3223.0,4.37008945]
[1767727938995,0.001,3223.5,3223.0,4.37008945]
[1767727939168,0.001,3223.5,3223.0,1.26746134]
[1767727939710,0.001,3223.5,3223.1,4.37000565]
[1767727939903,0.001,3223.5,3223.2,0.43700057]
[1767727940200,0.001,3223.5,3223.3,1.26746134]
[1767727940367,0.001,3223.9,3223.3,1.26746134]
[1767727941587,3.10284548,3223.9,3223.3,1.26746134]
[1767727941799,0.001,3223.9,3223.3,1.26746134]
[1767727941978,0.001,3223.9,3223.4,0.17044619]
[1767727942179,1.30695317,3223.9,3223.4,0.17044619]
[1767727942377,1.30695317,3223.9,3223.2,0.43700057]
[1767727943668,1.30695317,3223.9,3223.2,3.53949549]
[1767727944394,1.30595317,3223.8,3223.2,3.53949549]
[1767727944997,1.30595317,3223.8,3223.2,6.64200231]
[1767727945191,1.30595317,3223.8,3223.2,3.53949549]
[1767727945365,1.30595317,3223.8,3223.3,0.74540715]
[1767727947884,0.001,3223.9,3223.4,1.26746134]
[1767727948085,3.10284318,3223.9,3223.4,1.26746134]
[1767727948309,0.001,3223.9,3223.4,1.26746134]
[1767727949079,0.001,3223.9,3223.5,1.26946134]
[1767727949279,0.001,3223.6,3223.5,1.77806115]
[1767727949612,0.001,3223.6,3223.5,4.88027923]
[1767727949857,1.30695317,3224.8,3223.6,1.26746134]
[1767727950015,1.30695317,3224.8,3223.7,0.812]
[1767727950016,1.30595317,3224.6,3223.7,0.812]
[1767727950501,1.30595317,3224.6,3223.8,0.20794613]
[1767727951481,1.30595317,3224.6,3223.9,6.20366636]
[1767727952196,1.30595317,3224.6,3223.9,9.30549954]
[1767727952590,1.30595317,3224.6,3223.9,9.30349954]
[1767727952997,0.001,3224.8,3224.0,1.34044018]
[1767727953197,0.001,3224.8,3224.2,1.34044018]
[1767727953381,0.001,3224.8,3224.2,2.15244018]
[1767727953586,1.2546193,3225.2,3224.4,3.10135218]
[1767727953996,1.2546193,3225.2,3224.4,6.20270436]
[1767727954313,1.2546193,3225.2,3224.5,0.75431445]
[1767727954609,3.10040574,3225.4,3224.5,2.09475463]
[1767727954822,4.35496045,3225.5,3224.5,2.09475463]
[1767727955203,1.2546193,3225.4,3224.5,2.09475463]
[1767727955404,6.2006823,3225.5,3224.6,1.34044018]
[1767727955608,3.10048677,3225.3,3224.6,1.34044018]
[1767727956613,3.10048677,3225.3,3224.3,1.34044018]
[1767727956614,1.2546193,3225.2,3224.3,1.34044018]
[1767727957795,6.20135808,3225.1,3224.3,1.34044018]
[1767727958190,7.45597738,3225.1,3224.3,1.34044018]
[1767727958817,1.2546193,3225.0,3224.0,0.812]
[1767727958992,0.74559774,3224.9,3224.0,2.15244018]
[1767727959193,2.00021704,3224.9,3224.0,2.15244018]
[1767727959521,2.00021704,3224.9,3224.0,5.25412581]
[1767727959690,2.00021704,3224.9,3224.1,1.34044018]
[1767727961222,3.1009675,3224.8,3224.6,0.002]
[1767727961418,1.76473775,3224.7,3224.0,0.812]
[1767727961725,1.76473775,3224.7,3224.3,0.002]
[1767727963210,4.86582454,3224.7,3224.3,0.002]
[1767727963406,1.2556193,3224.9,3224.3,0.002]
[1767727963608,1.2556193,3224.9,3224.4,1.34044018]
[1767727963609,0.001,3224.9,3224.4,1.34044018]
[1767727964009,1.2546193,3225.6,3224.4,1.34044018]
[1767727964212,3.10033382,3225.5,3224.7,1.34044018]
[1767727965615,3.10033382,3225.5,3224.7,4.44143553]
[1767727966017,3.10033382,3225.5,3224.8,1.34044018]
[1767727967829,3.10033382,3225.5,3224.8,4.441367]
[1767727968019,3.10033382,3225.5,3224.5,0.812]
[1767727968020,3.10033382,3225.5,3224.9,1.34044018]
[1767727971614,6.1998202,3225.9,3225.0,1.34044018]
[1767727971811,4.3545294,3225.9,3225.0,1.34044018]
[1767727972111,3.09950082,3226.4,3225.0,1.34044018]
[1767727972112,1.2546193,3226.1,3225.0,1.34044018]
[1767727972351,4.35435984,3226.1,3225.1,1.34044018]
[1767727972713,1.2546193,3226.0,3225.0,0.812]
[1767727972934,1.2546193,3226.0,3225.1,0.74578587]
[1767727973344,1.2546193,3226.0,3225.0,0.812]
[1767727973735,1.2546193,3225.8,3225.0,0.812]
[1767727973929,1.2556193,3225.8,3225.0,0.812]
[1767727974438,1.2556193,3225.8,3225.0,3.91275431]
[1767727974641,0.67402072,3227.1,3225.1,1.34044018]
[1767727974821,0.67402072,3227.1,3225.2,1.34044018]
[1767727974822,0.31924804,3227.0,3225.2,1.34044018]
[1767727975246,0.31924804,3227.0,3225.1,0.48491131]
[1767727975247,0.31924804,3227.0,3225.4,1.34044018]
[1767727975565,0.31924804,3227.0,3225.6,1.34044018]
[1767727976225,3.09894945,3226.9,3225.8,1.34044018]
[1767727976415,3.4407692,3226.9,3226.0,1.34044018]
[1767727976619,3.4407692,3226.9,3226.1,0.812]
[1767727977362,6.53971865,3226.9,3226.1,0.812]
[1767727979048,6.53971865,3226.9,3226.0,2.15244018]
[1767727980040,6.53971865,3226.9,3226.0,5.25223989]
[1767727981119,1.45395376,3226.8,3225.2,1.27448638]
[1767727981324,0.69877638,3226.7,3225.6,4.38944585]
[1767727981523,0.69877638,3226.7,3225.7,1.28925423]
[1767727983759,3.09923758,3226.6,3225.8,1.28925423]
[1767727984056,0.45531913,3226.6,3225.8,1.28925423]
[1767727984360,3.09866137,3227.2,3225.8,1.28925423]
[1767727984558,0.812,3227.3,3225.8,1.28925423]
[1767727984559,6.19722328,3227.3,3225.8,1.28925423]
[1767727984745,6.19722328,3227.3,3226.0,1.28925423]
[1767727984935,6.96917688,3227.3,3226.2,1.28925423]
[1767727985339,0.71313058,3227.2,3226.2,1.28925423]
[1767727985546,0.71313058,3227.2,3225.8,1.28925423]
[1767727985746,0.71313058,3227.0,3225.8,1.28925423]
[1767727985951,1.52513058,3226.9,3225.8,1.28925423]
[1767727986357,0.001,3226.3,3225.8,1.28925423]
[1767727987431,0.001,3226.3,3225.8,1.28771681]
[1767727987884,0.001,3226.3,3225.5,1.28925423]
[1767727988186,0.001,3226.3,3225.4,0.002]
[1767727988187,0.72117919,3226.3,3225.4,0.002]
[1767727988483,0.72117919,3226.3,3225.4,1.29125423]
[1767727989877,6.19924368,3226.2,3225.4,1.29125423]
[1767727990077,0.69204229,3226.1,3225.4,0.002]
[1767727990372,0.69204229,3226.1,3225.0,3.10276216]
[1767727990373,0.72821808,3226.0,3225.0,0.002]
[1767727990670,0.72621808,3225.8,3224.6,0.002]
[1767727991054,0.72621808,3225.8,3224.7,1.28925423]
[1767727991270,0.812,3225.9,3224.7,1.28925423]
[1767727991495,0.72883415,3225.8,3224.7,1.28925423]
[1767727992699,0.73142637,3225.6,3224.6,0.002]
[1767727992898,1.00317333,3225.5,3224.6,0.002]
[1767727993183,0.812,3225.4,3224.6,0.002]
[1767727993553,0.812,3225.4,3224.6,1.29125423]
[1767727993983,2.17380491,3225.4,3224.3,0.002]
[1767727994168,1.67950273,3225.3,3224.3,0.002]
[1767727994570,1.36180491,3225.1,3224.3,0.002]
[1767727996764,6.20155038,3225.0,3224.3,0.002]
[1767727996962,7.01355038,3225.0,3224.3,0.002]
[1767727997693,8.37535529,3225.0,3224.3,0.002]
[1767727997893,0.83753553,3224.9,3224.3,0.002]
[1767727998914,6.201935,3224.8,3224.3,0.002]
[1767727999122,6.201935,3224.8,3224.6,0.001]
[1767727999420,1.36180491,3224.7,3224.3,0.002]
[1767727999929,3.93843338,3224.9,3224.3,0.002]
[1767728000093,0.812,3224.8,3224.3,1.29125423]
[1767728000426,0.812,3224.7,3224.3,0.002]
[1767728000711,0.812,3224.7,3223.7,4.39121121]
[1767728000712,1.36180491,3224.6,3223.7,4.39121121]
[1767728000883,3.101256,3224.5,3223.8,1.28925423]
[1767728001279,6.202512,3224.5,3223.8,1.28925423]
[1767728001512,7.56431691,3224.5,3223.5,1.28925423]
[1767728001811,4.46306091,3224.5,3223.5,1.28925423]
[1767728001980,0.812,3224.4,3223.9,1.28925423]
[1767728002176,0.812,3224.3,3223.9,1.28925423]
[1767728002804,1.36180491,3224.2,3223.2,1.28925423]
[1767728003005,1.33978315,3224.1,3223.3,3.102337]
[1767728003196,1.29573961,3224.1,3223.3,6.20474757]
[1767728003402,0.812,3224.0,3223.4,0.74940018]
[1767728003605,1.36180491,3223.9,3223.4,0.74940018]
[1767728003808,1.36180491,3223.9,3223.3,3.102337]
[1767728004348,1.36180491,3223.9,3223.3,6.20474757]
[1767728005128,1.36180491,3223.9,3223.3,3.102337]
[1767728005525,1.36180491,3223.9,3223.1,0.002]
[1767728005526,1.36180491,3223.8,3223.1,0.002]
[1767728006732,0.812,3223.7,3223.1,3.10457758]
[1767728006916,0.812,3223.7,3223.2,0.31065776]
[1767728007328,0.812,3223.7,3223.2,3.41313925]
[1767728008138,0.812,3223.7,3223.3,1.28925423]
[1767728009620,0.812,3223.7,3223.4,1.28925423]
[1767728011320,0.812,3223.7,3223.2,0.31065776]
[1767728011537,0.812,3223.7,3223.1,1.34544171]
[1767728011726,3.914069,3223.7,3223.1,1.34544171]
[1767728012242,3.914069,3223.7,3223.4,0.002]
[1767728012641,10.118207,3223.7,3223.0,0.002]
[1767728012822,1.40986976,3223.5,3222.3,1.34544171]
[1767728013028,1.40986976,3223.5,3222.3,0.002]
[1767728013555,1.40986976,3223.3,3222.3,0.002]
[1767728013781,1.40986976,3223.1,3222.3,0.002]
[1767728014319,1.40986976,3223.1,3221.9,0.002]
[1767728015028,1.40986976,3223.1,3221.4,0.002]
[1767728015564,1.40986976,3222.9,3221.4,0.002]
[1767728015733,1.40986976,3222.7,3221.4,0.002]
[1767728016065,1.40986976,3222.5,3221.4,0.002]
[1767728017416,6.20655412,3222.4,3221.4,0.002]
[1767728019368,7.61642388,3222.4,3221.4,0.002]
[1767728019754,1.40986976,3222.3,3221.4,0.002]
[1767728020087,0.813,3222.2,3221.5,1.34544171]
[1767728021090,6.2064653,3222.5,3221.5,1.34544171]
[1767728021301,0.813,3222.1,3221.5,1.34544171]
[1767728021990,3.91658499,3222.1,3221.5,0.002]
[1767728022167,0.3916585,3222.0,3221.5,0.002]
[1767728023957,3.4953978,3222.0,3221.5,0.002]
[1767728024162,0.3916585,3222.0,3221.5,0.002]
[1767728024383,0.813,3222.1,3221.5,0.002]
[1767728024384,3.10356768,3222.1,3221.5,0.002]
[1767728024584,0.813,3222.0,3221.5,0.002]
[1767728024791,0.813,3222.0,3221.8,0.002]
[1767728025997,0.813,3221.9,3221.8,0.002]
[1767728027806,7.0205173,3221.9,3221.5,0.002]
[1767728028181,7.0205173,3221.9,3221.1,0.002]
[1767728028182,7.86365601,3221.9,3221.1,0.002]
[1767728028789,4.75989736,3221.9,3221.1,1.34544171]
[1767728029396,4.75993609,3221.9,3221.1,1.34544171]
[1767728029819,1.65613871,3221.9,3221.1,1.34544171]
[1767728030124,0.813,3221.8,3221.1,1.34544171]
[1767728031018,0.813,3221.8,3221.3,1.34344171]
[1767728033145,3.91685821,3221.8,3221.3,1.34344171]
[1767728033347,0.813,3221.7,3221.3,1.34344171]
[1767728033525,0.813,3221.7,3221.4,1.34344171]
[1767728037073,0.001,3222.1,3221.5,1.34344171]
[1767728037554,0.814,3222.1,3222.0,1.37856229]
[1767728038457,0.814,3222.1,3221.5,1.37856229]
[1767728040361,0.814,3222.1,3221.4,6.65324468]
[1767728040362,0.814,3222.1,3221.6,1.37856229]
[1767728041063,3.91763492,3222.1,3221.4,0.44477668]
[1767728041264,3.91763492,3222.1,3221.5,0.1823339]
[1767728041764,0.814,3222.1,3221.5,3.28646786]
[1767728042337,3.91757853,3222.1,3221.5,0.1823339]
[1767728042537,0.814,3222.1,3221.5,0.1823339]
[1767728042751,3.91757226,3222.1,3221.5,0.1823339]
[1767728043259,7.02114452,3222.1,3221.5,0.1823339]
[1767728043567,3.91757226,3222.1,3221.5,0.1823339]
[1767728043761,5.18819492,3222.1,3221.5,0.1823339]
[1767728044270,1.27062266,3222.0,3221.3,3.10428058]
[1767728044443,1.27062266,3222.0,3221.2,4.46499493]
[1767728044631,1.27062266,3221.8,3221.1,0.002]
[1767728046659,3.10395133,3221.7,3221.1,0.002]
[1767728046967,0.813,3221.6,3221.1,0.002]
[1767728047333,2.08362266,3221.6,3221.1,0.002]
[1767728047536,1.27062266,3222.0,3221.1,0.002]
[1767728047758,0.813,3221.9,3221.2,1.36060639]
[1767728048779,0.001,3221.7,3221.2,1.36060639]
[1767728048951,0.001,3221.7,3221.1,0.002]
[1767728049982,0.001,3221.7,3221.2,3.10441319]
[1767728050187,0.001,3221.7,3221.1,3.10649181]
[1767728050685,1.27062266,3221.6,3220.6,0.002]
[1767728050854,1.27062266,3221.5,3220.6,0.002]
[1767728051061,1.27062266,3221.3,3220.6,0.002]
[1767728052891,6.20886626,3221.2,3220.6,0.002]
[1767728053059,0.74794889,3221.1,3220.6,0.002]
[1767728053769,2.01857155,3221.1,3220.6,0.002]
[1767728054167,3.10443313,3221.2,3220.6,0.002]
[1767728054387,3.10437832,3221.3,3220.6,0.002]
[1767728054596,0.813,3221.2,3220.6,0.002]
[1767728055606,3.9175209,3221.2,3220.6,0.002]
[1767728055902,5.18814356,3221.2,3220.6,0.002]
[1767728056815,1.27062266,3221.1,3220.6,0.002]
[1767728057901,4.37524855,3221.0,3220.6,0.002]
[1767728058281,1.27062266,3221.0,3220.6,0.002]
[1767728058477,0.82924972,3221.2,3220.6,0.002]
[1767728058684,0.813,3221.1,3220.6,1.36260639]
[1767728059276,4.37467033,3221.6,3220.6,1.36260639]
[1767728059480,0.813,3221.5,3220.6,1.36260639]
[1767728059680,4.37467033,3221.6,3220.6,1.36260639]
[1767728059681,0.813,3221.4,3220.6,1.36260639]
[1767728060096,7.47929616,3221.3,3220.6,0.002]
[1767728060297,2.09985228,3221.2,3220.6,0.002]
[1767728060504,2.09985228,3221.2,3220.9,0.002]
[1767728061210,0.82922962,3221.2,3220.9,0.002]
[1767728061510,0.813,3221.1,3220.9,0.002]
[1767728063602,3.10428886,3221.4,3220.9,0.002]
[1767728063806,0.813,3221.3,3220.9,0.002]
[1767728064191,3.10406679,3221.6,3220.9,1.36260639]
[1767728064192,3.104067,3221.6,3220.9,1.36260639]
[1767728064406,1.27162266,3221.7,3220.9,1.36260639]
[1767728064407,0.001,3221.7,3220.9,1.36260639]
[1767728064586,0.813,3221.6,3220.9,1.36260639]
[1767728064791,0.813,3221.6,3221.0,1.36060639]
[1767728065006,0.813,3221.6,3221.0,1.80733063]
[1767728066418,0.813,3221.6,3221.1,1.36060639]
[1767728067484,0.813,3221.6,3221.1,4.46511448]
[1767728068514,0.001,3221.7,3221.2,1.36060639]
[1767728068711,0.813,3221.6,3221.2,1.36060639]
[1767728069805,0.001,3221.7,3221.2,1.36060639]
[1767728069806,0.814,3221.7,3221.3,1.36060639]
[1767728070801,1.27062266,3222.3,3221.2,3.59553782]
[1767728070802,1.27062266,3223.3,3222.1,1.36060639]
[1767728071321,0.813,3223.2,3222.1,1.36060639]
[1767728071618,1.33686391,3223.6,3222.1,1.36060639]
[1767728071819,3.10221808,3223.5,3222.3,1.30132503]
[1767728072017,0.813,3223.4,3222.3,1.30132503]
[1767728072218,2.14986391,3223.4,3222.3,1.30132503]
[1767728072525,1.33686391,3223.3,3222.3,1.30132503]